[Event "Titled Tuesday Blitz April 26 Late 2022"]
[White "Eswaran, Ashritha"]
[Black "Song, Guannan Terry"]
[WhiteFideId "2080788"]
[BlackFideId "2614189"]
[WhiteElo "2416"]
[BlackElo "2115"]
[Result "1-0"]
[Round "04"]
[TimeControl "180+1"]
[Date "2022.04.26"]
[WhiteClock "0:01:15"]
[BlackClock "0:00:14"]

1. e4 {[%clk 0:03:00]}  c5 {[%clk 0:02:59]} 2. Nf3 {[%clk 0:03:00]}  d6 {[%clk 0:02:58]} 3. Bb5+ {[%clk 0:03:00]}  Bd7 {[%clk 0:02:58]} 4. Bxd7+ {[%clk 0:02:59]}  Nxd7 {[%clk 0:02:58]} 5. O-O {[%clk 0:02:59]}  Ngf6 {[%clk 0:02:58]} 6. Re1 {[%clk 0:03:00]}  e6 {[%clk 0:02:58]} 7. c3 {[%clk 0:03:00]}  Be7 {[%clk 0:02:50]} 8. d4 {[%clk 0:03:01]}  O-O {[%clk 0:02:49]} 9. h3 {[%clk 0:03:00]}  Rc8 {[%clk 0:02:47]} 10. Bf4 {[%clk 0:02:59]}  Re8 {[%clk 0:02:36]} 11. a4 {[%clk 0:02:57]}  Bf8 {[%clk 0:02:32]} 12. e5 {[%clk 0:02:55]}  Nd5 {[%clk 0:02:28]} 13. Bh2 {[%clk 0:02:53]}  dxe5 {[%clk 0:02:23]} 14. dxe5 {[%clk 0:02:52]}  Nb8 {[%clk 0:02:18]} 15. Na3 {[%clk 0:02:52]}  Nc6 {[%clk 0:02:15]} 16. Nc4 {[%clk 0:02:52]}  h6 {[%clk 0:02:09]} 17. Qc2 {[%clk 0:02:49]}  Qc7 {[%clk 0:02:04]} 18. Rad1 {[%clk 0:02:49]}  b6 {[%clk 0:01:56]} 19. Nfd2 {[%clk 0:02:39]}  a6 {[%clk 0:01:48]} 20. Ne4 {[%clk 0:02:39]}  Rb8 {[%clk 0:01:46]} 21. Ncd6 {[%clk 0:02:38]}  Red8 {[%clk 0:01:42]} 22. Qe2 {[%clk 0:02:35]}  Ra8 {[%clk 0:01:35]} 23. Qf3 {[%clk 0:02:34]}  Rd7 {[%clk 0:01:13]} 24. Qg4 {[%clk 0:02:10]}  Kh8 {[%clk 0:01:10]} 25. f4 {[%clk 0:02:02]}  f5 {[%clk 0:01:04]} 26. Nxf5 {[%clk 0:01:37]}  exf5 {[%clk 0:01:04]} 27. Qxf5 {[%clk 0:01:38]}  Rf7 {[%clk 0:00:59]} 28. Qg4 {[%clk 0:01:34]}  Nde7 {[%clk 0:00:51]} 29. Nd6 {[%clk 0:01:27]}  Ng8 {[%clk 0:00:48]} 30. Nxf7+ {[%clk 0:01:22]}  Qxf7 {[%clk 0:00:49]} 31. f5 {[%clk 0:01:17]}  Re8 {[%clk 0:00:44]} 32. e6 {[%clk 0:01:16]}  Qf6 {[%clk 0:00:38]} 33. Qf3 {[%clk 0:01:16]}  Nce7 {[%clk 0:00:35]} 34. Be5 {[%clk 0:01:15]}  Qxf5 {[%clk 0:00:34]} 35. Qxf5 {[%clk 0:01:14]}  Nxf5 {[%clk 0:00:35]} 36. Rf1 {[%clk 0:01:14]}  Nge7 {[%clk 0:00:27]} 37. g4 {[%clk 0:01:13]}  Ne3 {[%clk 0:00:26]} 38. Rxf8+ {[%clk 0:01:07]}  Rxf8 {[%clk 0:00:25]} 39. Rd7 {[%clk 0:01:07]}  Re8 {[%clk 0:00:23]} 40. Bd6 {[%clk 0:01:07]}  Nc8 {[%clk 0:00:22]} 41. Be5 {[%clk 0:01:07]}  Rxe6 {[%clk 0:00:18]} 42. Bxg7+ {[%clk 0:01:07]}  Kh7 {[%clk 0:00:18]} 43. Bd4+ {[%clk 0:01:05]}  Kg8 {[%clk 0:00:17]} 44. Bxe3 {[%clk 0:01:04]}  Rxe3 {[%clk 0:00:16]} 45. Rd8+ {[%clk 0:01:04]}  Kf7 {[%clk 0:00:17]} 46. Rxc8 {[%clk 0:01:05]}  Rxh3 {[%clk 0:00:17]} 47. Rc6 {[%clk 0:01:05]}  Rg3+ {[%clk 0:00:17]} 48. Kf2 {[%clk 0:01:05]}  Rxg4 {[%clk 0:00:17]} 49. Rxb6 {[%clk 0:01:05]}  Rxa4 {[%clk 0:00:17]} 50. Rxh6 {[%clk 0:01:05]}  Ra2 {[%clk 0:00:17]} 51. Rb6 {[%clk 0:01:04]}  a5 {[%clk 0:00:17]} 52. Ke3 {[%clk 0:01:05]}  a4 {[%clk 0:00:18]} 53. Kd3 {[%clk 0:01:05]}  a3 {[%clk 0:00:18]} 54. bxa3 {[%clk 0:01:05]}  Rxa3 {[%clk 0:00:19]} 55. Kc4 {[%clk 0:01:06]}  Ke7 {[%clk 0:00:19]} 56. Rc6 {[%clk 0:01:06]}  Kd7 {[%clk 0:00:19]} 57. Rxc5 {[%clk 0:01:07]}  Kd6 {[%clk 0:00:19]} 58. Kd4 {[%clk 0:01:07]}  Ra4+ {[%clk 0:00:19]} 59. c4 {[%clk 0:01:07]}  Ra1 {[%clk 0:00:18]} 60. Rd5+ {[%clk 0:01:08]}  Kc6 {[%clk 0:00:18]} 61. Rc5+ {[%clk 0:01:08]}  Kd6 {[%clk 0:00:19]} 62. Rb5 {[%clk 0:01:08]}  Rd1+ {[%clk 0:00:18]} 63. Kc3 {[%clk 0:01:08]}  Rc1+ {[%clk 0:00:19]} 64. Kb4 {[%clk 0:01:09]}  Kc6 {[%clk 0:00:19]} 65. Rc5+ {[%clk 0:01:09]}  Kb6 {[%clk 0:00:19]} 66. Rd5 {[%clk 0:01:09]}  Kc6 {[%clk 0:00:19]} 67. Rh5 {[%clk 0:01:08]}  Rb1+ {[%clk 0:00:19]} 68. Kc3 {[%clk 0:01:09]}  Rc1+ {[%clk 0:00:20]} 69. Kb3 {[%clk 0:01:09]}  Rb1+ {[%clk 0:00:18]} 70. Kc2 {[%clk 0:01:09]}  Rg1 {[%clk 0:00:18]} 71. Kd3 {[%clk 0:01:08]}  Rd1+ {[%clk 0:00:17]} 72. Kc2 {[%clk 0:01:08]}  Rg1 {[%clk 0:00:18]} 73. Re5 {[%clk 0:01:08]}  Rg3 {[%clk 0:00:18]} 74. Kb2 {[%clk 0:01:05]}  Rh3 {[%clk 0:00:17]} 75. Rd5 {[%clk 0:01:05]}  Rg3 {[%clk 0:00:17]} 76. Kc2 {[%clk 0:01:05]}  Re3 {[%clk 0:00:17]} 77. Rd3 {[%clk 0:01:06]}  Re4 {[%clk 0:00:16]} 78. Kc3 {[%clk 0:01:05]}  Re1 {[%clk 0:00:16]} 79. Kd2 {[%clk 0:01:05]}  Ra1 {[%clk 0:00:16]} 80. Kc3 {[%clk 0:01:06]}  Ra3+ {[%clk 0:00:16]} 81. Kd4 {[%clk 0:01:06]}  Ra1 {[%clk 0:00:15]} 82. Rd2 {[%clk 0:01:06]}  Rf1 {[%clk 0:00:15]} 83. Re2 {[%clk 0:01:06]}  Rf4+ {[%clk 0:00:13]} 84. Re4 {[%clk 0:01:06]}  Rf1 {[%clk 0:00:12]} 85. Re6+ {[%clk 0:01:06]}  Kd7 {[%clk 0:00:12]} 86. Rb6 {[%clk 0:01:06]}  Rf4+ {[%clk 0:00:11]} 87. Kc5 {[%clk 0:01:06]}  Rf5+ {[%clk 0:00:11]} 88. Kb4 {[%clk 0:01:07]}  Kc7 {[%clk 0:00:12]} 89. Re6 {[%clk 0:01:07]}  Rf1 {[%clk 0:00:11]} 90. Kb5 {[%clk 0:01:07]}  Rb1+ {[%clk 0:00:09]} 91. Kc5 {[%clk 0:01:07]}  Rh1 {[%clk 0:00:09]} 92. Re7+ {[%clk 0:01:06]}  Kd8 {[%clk 0:00:10]} 93. Rf7 {[%clk 0:01:07]}  Rh6 {[%clk 0:00:09]} 94. Kb5 {[%clk 0:01:06]}  Kc8 {[%clk 0:00:09]} 95. c5 {[%clk 0:01:07]}  Kb8 {[%clk 0:00:10]} 96. Rf8+ {[%clk 0:01:07]}  Kc7 {[%clk 0:00:10]} 97. Rf7+ {[%clk 0:01:07]}  Kb8 {[%clk 0:00:10]} 98. Ka5 {[%clk 0:01:07]}  Kc8 {[%clk 0:00:10]} 99. Kb5 {[%clk 0:01:07]}  Rg6 {[%clk 0:00:10]} 100. Re7 {[%clk 0:01:08]}  Kb8 {[%clk 0:00:10]} 101. Rd7 {[%clk 0:01:08]}  Rh6 {[%clk 0:00:11]} 102. Rd6 {[%clk 0:01:08]}  Rh1 {[%clk 0:00:11]} 103. Kc6 {[%clk 0:01:08]}  Kc8 {[%clk 0:00:10]} 104. Re6 {[%clk 0:01:08]}  Rd1 {[%clk 0:00:08]} 105. Re8+ {[%clk 0:01:08]}  Rd8 {[%clk 0:00:08]} 106. Rxd8+ {[%clk 0:01:09]}  Kxd8 {[%clk 0:00:09]} 107. Kb7 {[%clk 0:01:09]}  Kd7 {[%clk 0:00:09]} 108. c6+ {[%clk 0:01:10]}  Kd6 {[%clk 0:00:08]} 109. c7 {[%clk 0:01:11]}  Kc5 {[%clk 0:00:09]} 110. c8=Q+ {[%clk 0:01:12]}  Kb5 {[%clk 0:00:10]} 111. Qc7 {[%clk 0:01:12]}  Ka4 {[%clk 0:00:10]} 112. Qc6+ {[%clk 0:01:13]}  Ka5 {[%clk 0:00:11]} 113. Kc7 {[%clk 0:01:14]}  Kb4 {[%clk 0:00:10]} 114. Kd6 {[%clk 0:01:15]}  Ka5 {[%clk 0:00:11]} 115. Kd5 {[%clk 0:01:15]}  Kb4 {[%clk 0:00:12]} 116. Qc5+ {[%clk 0:01:15]}  Ka4 {[%clk 0:00:12]} 117. Kd4 {[%clk 0:01:14]}  Kb3 {[%clk 0:00:12]} 118. Qc4+ {[%clk 0:01:14]}  Ka3 {[%clk 0:00:13]} 119. Qb5 {[%clk 0:01:15]}  Ka2 {[%clk 0:00:13]} 120. Kc3 {[%clk 0:01:15]}  Ka1 {[%clk 0:00:14]} 121. Qb2# {[%clk 0:01:15]} 1-0


[Site "https://www.chess.com"]

[Event "Titled Tuesday Blitz April 26 Late 2022"]
[White "Fernandez Siles, Luis"]
[Black "Rastbod, Ali"]
[WhiteFideId "2209420"]
[BlackFideId "12567477"]
[WhiteElo "2212"]
[BlackElo "2147"]
[Result "0-1"]
[Round "04"]
[TimeControl "180+1"]
[Date "2022.04.26"]
[WhiteClock "0:00:40"]
[BlackClock "0:01:01"]

1. d4 {[%clk 0:03:00]}  g6 {[%clk 0:02:57]} 2. c4 {[%clk 0:02:58]}  Bg7 {[%clk 0:02:55]} 3. Nf3 {[%clk 0:02:58]}  d6 {[%clk 0:02:53]} 4. Nc3 {[%clk 0:02:57]}  Nc6 {[%clk 0:02:53]} 5. e4 {[%clk 0:02:48]}  Bg4 {[%clk 0:02:43]} 6. d5 {[%clk 0:02:35]}  Nd4 {[%clk 0:02:43]} 7. Be3 {[%clk 0:02:24]}  Bxf3 {[%clk 0:02:37]} 8. gxf3 {[%clk 0:02:22]}  c5 {[%clk 0:02:38]} 9. h4 {[%clk 0:02:17]}  h5 {[%clk 0:02:25]} 10. Bh3 {[%clk 0:02:14]}  Nf6 {[%clk 0:02:16]} 11. Bxd4 {[%clk 0:02:05]}  cxd4 {[%clk 0:02:17]} 12. Qxd4 {[%clk 0:02:06]}  O-O {[%clk 0:02:16]} 13. Qd2 {[%clk 0:02:02]}  Qc7 {[%clk 0:02:02]} 14. Qd3 {[%clk 0:01:54]}  Bh6 {[%clk 0:01:45]} 15. Ne2 {[%clk 0:01:43]}  a6 {[%clk 0:01:32]} 16. f4 {[%clk 0:01:23]}  b5 {[%clk 0:01:28]} 17. cxb5 {[%clk 0:01:23]}  axb5 {[%clk 0:01:29]} 18. f5 {[%clk 0:01:22]}  Nd7 {[%clk 0:01:24]} 19. fxg6 {[%clk 0:01:19]}  Ne5 {[%clk 0:01:22]} 20. gxf7+ {[%clk 0:01:18]}  Rxf7 {[%clk 0:01:23]} 21. Rg1+ {[%clk 0:01:07]}  Kh8 {[%clk 0:01:22]} 22. Qc3 {[%clk 0:00:55]}  Qxc3+ {[%clk 0:01:10]} 23. Nxc3 {[%clk 0:00:53]}  Nd3+ {[%clk 0:01:02]} 24. Kd1 {[%clk 0:00:44]}  Nxf2+ {[%clk 0:01:01]} 25. Ke2 {[%clk 0:00:43]}  Nxh3 {[%clk 0:01:01]} 26. Nxb5 {[%clk 0:00:40]} 0-1


[Site "https://www.chess.com"]

[Event "Titled Tuesday Blitz April 26 Late 2022"]
[White "Fiorito, Fabian"]
[Black "Kaganskiy, Gleb"]
[WhiteFideId "100200"]
[BlackFideId "4132025"]
[WhiteElo "2395"]
[BlackElo "2165"]
[Result "1-0"]
[Round "04"]
[TimeControl "180+1"]
[Date "2022.04.26"]
[WhiteClock "0:00:48"]
[BlackClock "0:00:36"]

1. e4 {[%clk 0:03:00]}  d6 {[%clk 0:02:57]} 2. d4 {[%clk 0:03:00]}  Nf6 {[%clk 0:02:56]} 3. Nc3 {[%clk 0:03:00]}  e5 {[%clk 0:02:55]} 4. dxe5 {[%clk 0:02:56]}  dxe5 {[%clk 0:02:56]} 5. Qxd8+ {[%clk 0:02:56]}  Kxd8 {[%clk 0:02:56]} 6. Nf3 {[%clk 0:02:56]}  Bd6 {[%clk 0:02:53]} 7. Bg5 {[%clk 0:02:54]}  Be6 {[%clk 0:02:51]} 8. O-O-O {[%clk 0:02:52]}  Nd7 {[%clk 0:02:48]} 9. Bd3 {[%clk 0:02:41]}  h6 {[%clk 0:02:44]} 10. Bh4 {[%clk 0:02:37]}  g5 {[%clk 0:02:38]} 11. Bg3 {[%clk 0:02:36]}  Nh5 {[%clk 0:02:33]} 12. Bb5 {[%clk 0:02:30]}  Nxg3 {[%clk 0:02:29]} 13. hxg3 {[%clk 0:02:27]}  f6 {[%clk 0:02:20]} 14. Nd2 {[%clk 0:02:24]}  c6 {[%clk 0:02:16]} 15. Bc4 {[%clk 0:02:24]}  Bxc4 {[%clk 0:02:09]} 16. Nxc4 {[%clk 0:02:25]}  Bb4 {[%clk 0:02:07]} 17. Ne2 {[%clk 0:02:22]}  Kc7 {[%clk 0:02:05]} 18. f3 {[%clk 0:02:14]}  Bc5 {[%clk 0:02:02]} 19. g4 {[%clk 0:02:10]}  b5 {[%clk 0:02:01]} 20. Nd2 {[%clk 0:02:09]}  Be3 {[%clk 0:01:59]} 21. Ng3 {[%clk 0:02:08]}  Rh7 {[%clk 0:01:25]} 22. Nf5 {[%clk 0:02:07]}  Bxd2+ {[%clk 0:01:24]} 23. Rxd2 {[%clk 0:02:08]}  Rah8 {[%clk 0:01:23]} 24. Rh5 {[%clk 0:02:06]}  Nc5 {[%clk 0:01:18]} 25. g3 {[%clk 0:02:04]}  Ne6 {[%clk 0:01:10]} 26. Rdh2 {[%clk 0:01:59]}  Nd4 {[%clk 0:01:03]} 27. Nxd4 {[%clk 0:00:56]}  exd4 {[%clk 0:01:04]} 28. f4 {[%clk 0:00:57]}  Kd6 {[%clk 0:00:47]} 29. e5+ {[%clk 0:00:54]}  fxe5 {[%clk 0:00:43]} 30. fxg5 {[%clk 0:00:54]}  Rg7 {[%clk 0:00:41]} 31. Rxh6+ {[%clk 0:00:48]}  Rxh6 {[%clk 0:00:39]} 32. gxh6 {[%clk 0:00:49]}  Rh7 {[%clk 0:00:37]} 33. g5 {[%clk 0:00:49]}  Ke6 {[%clk 0:00:36]} 34. g6 {[%clk 0:00:48]} 1-0


[Site "https://www.chess.com"]

[Event "Titled Tuesday Blitz April 26 Late 2022"]
[White "Gnechko, Ruslan"]
[Black "Leiva, Gianmarco"]
[WhiteFideId "14135868"]
[BlackFideId "3804399"]
[WhiteElo "2493"]
[BlackElo "2727"]
[Result "0-1"]
[Round "04"]
[TimeControl "180+1"]
[Date "2022.04.26"]
[WhiteClock "0:00:35"]
[BlackClock "0:00:42"]

1. d4 {[%clk 0:03:00]}  g6 {[%clk 0:02:55]} 2. c4 {[%clk 0:03:00]}  Bg7 {[%clk 0:02:55]} 3. Nc3 {[%clk 0:03:00]}  d6 {[%clk 0:02:56]} 4. e4 {[%clk 0:03:00]}  Nd7 {[%clk 0:02:52]} 5. Nge2 {[%clk 0:02:59]}  e5 {[%clk 0:02:47]} 6. d5 {[%clk 0:02:59]}  Ne7 {[%clk 0:02:41]} 7. h4 {[%clk 0:02:58]}  f5 {[%clk 0:02:35]} 8. h5 {[%clk 0:02:52]}  f4 {[%clk 0:02:31]} 9. g3 {[%clk 0:02:38]}  g5 {[%clk 0:02:29]} 10. Bh3 {[%clk 0:02:38]}  Nc5 {[%clk 0:02:23]} 11. Bxc8 {[%clk 0:02:32]}  Qxc8 {[%clk 0:02:24]} 12. gxf4 {[%clk 0:02:30]}  exf4 {[%clk 0:02:23]} 13. Nd4 {[%clk 0:02:21]}  h6 {[%clk 0:02:09]} 14. Rg1 {[%clk 0:02:21]}  Qh3 {[%clk 0:02:04]} 15. f3 {[%clk 0:01:42]}  Qh4+ {[%clk 0:01:24]} 16. Kf1 {[%clk 0:01:40]}  Qh3+ {[%clk 0:01:22]} 17. Kf2 {[%clk 0:01:34]}  O-O {[%clk 0:01:08]} 18. b4 {[%clk 0:01:21]}  Nd7 {[%clk 0:00:58]} 19. Bb2 {[%clk 0:01:16]}  Ne5 {[%clk 0:00:52]} 20. Ne6 {[%clk 0:01:14]}  Nxc4 {[%clk 0:00:51]} 21. Nxg7 {[%clk 0:01:03]}  Qh4+ {[%clk 0:00:44]} 22. Ke2 {[%clk 0:00:42]}  Qh2+ {[%clk 0:00:43]} 23. Ke1 {[%clk 0:00:35]}  Qxg1+ {[%clk 0:00:42]} 0-1


[Site "https://www.chess.com"]

[Event "Titled Tuesday Blitz April 26 Late 2022"]
[White "Gomez Dieguez, David"]
[Black "Petrova, Irina"]
[WhiteFideId "22223630"]
[BlackFideId "14124122"]
[WhiteElo "2115"]
[BlackElo "1993"]
[Result "0-1"]
[Round "04"]
[TimeControl "180+1"]
[Date "2022.04.26"]
[WhiteClock "0:00:01"]
[BlackClock "0:00:32"]

1. c4 {[%clk 0:03:00]}  e5 {[%clk 0:02:59]} 2. Nc3 {[%clk 0:03:00]}  Nf6 {[%clk 0:02:59]} 3. Nf3 {[%clk 0:03:00]}  Nc6 {[%clk 0:02:56]} 4. e3 {[%clk 0:03:01]}  Bb4 {[%clk 0:02:55]} 5. Qc2 {[%clk 0:02:59]}  O-O {[%clk 0:02:54]} 6. Nd5 {[%clk 0:02:58]}  Bc5 {[%clk 0:02:47]} 7. Ng5 {[%clk 0:02:50]}  g6 {[%clk 0:02:40]} 8. Nxf6+ {[%clk 0:02:49]}  Qxf6 {[%clk 0:02:41]} 9. Ne4 {[%clk 0:02:50]}  Qe7 {[%clk 0:02:41]} 10. a3 {[%clk 0:02:47]}  a5 {[%clk 0:02:40]} 11. b3 {[%clk 0:02:46]}  Bb6 {[%clk 0:02:34]} 12. c5 {[%clk 0:02:42]}  Ba7 {[%clk 0:02:33]} 13. Bc4 {[%clk 0:02:02]}  d6 {[%clk 0:02:27]} 14. cxd6 {[%clk 0:02:00]}  cxd6 {[%clk 0:02:28]} 15. Bb2 {[%clk 0:01:55]}  Bf5 {[%clk 0:02:25]} 16. Bd5 {[%clk 0:01:53]}  Rac8 {[%clk 0:02:24]} 17. Qd1 {[%clk 0:01:43]}  Be6 {[%clk 0:02:15]} 18. Bxe6 {[%clk 0:01:38]}  fxe6 {[%clk 0:02:16]} 19. O-O {[%clk 0:01:36]}  d5 {[%clk 0:02:15]} 20. Nc3 {[%clk 0:01:31]}  e4 {[%clk 0:02:09]} 21. Nb5 {[%clk 0:01:29]}  Bb6 {[%clk 0:02:08]} 22. Qg4 {[%clk 0:01:18]}  Rce8 {[%clk 0:02:01]} 23. h4 {[%clk 0:01:10]}  Rf5 {[%clk 0:01:57]} 24. f3 {[%clk 0:00:29]}  exf3 {[%clk 0:01:53]} 25. Rxf3 {[%clk 0:00:28]}  Qc5 {[%clk 0:01:40]} 26. Nd4 {[%clk 0:00:22]}  Nxd4 {[%clk 0:01:39]} 27. Bxd4 {[%clk 0:00:21]}  Qd6 {[%clk 0:01:31]} 28. Raf1 {[%clk 0:00:18]}  Ref8 {[%clk 0:01:26]} 29. Bxb6 {[%clk 0:00:16]}  Qxb6 {[%clk 0:01:25]} 30. Rxf5 {[%clk 0:00:16]}  exf5 {[%clk 0:01:20]} 31. Qa4 {[%clk 0:00:14]}  Rc8 {[%clk 0:01:17]} 32. Kh2 {[%clk 0:00:12]}  Qc7+ {[%clk 0:01:14]} 33. g3 {[%clk 0:00:12]}  Qc2 {[%clk 0:01:11]} 34. Rf2 {[%clk 0:00:12]}  Qc6 {[%clk 0:01:08]} 35. Qd4 {[%clk 0:00:12]}  b5 {[%clk 0:01:04]} 36. b4 {[%clk 0:00:12]}  a4 {[%clk 0:01:03]} 37. h5 {[%clk 0:00:10]}  Qc4 {[%clk 0:00:56]} 38. Qf6 {[%clk 0:00:10]}  Qc6 {[%clk 0:00:47]} 39. Qe5 {[%clk 0:00:08]}  Re8 {[%clk 0:00:44]} 40. Qf4 {[%clk 0:00:06]}  Re4 {[%clk 0:00:42]} 41. Qg5 {[%clk 0:00:06]}  Rg4 {[%clk 0:00:38]} 42. Qd8+ {[%clk 0:00:06]}  Kg7 {[%clk 0:00:38]} 43. Qe7+ {[%clk 0:00:04]}  Kh6 {[%clk 0:00:37]} 44. hxg6 {[%clk 0:00:04]}  hxg6 {[%clk 0:00:33]} 45. Qf8+ {[%clk 0:00:04]}  Kg5 {[%clk 0:00:32]} 46. Qe7+ {[%clk 0:00:03]}  Qf6 {[%clk 0:00:32]} 47. Qxf6+ {[%clk 0:00:02]}  Kxf6 {[%clk 0:00:32]} 48. d4 {[%clk 0:00:02]}  Re4 {[%clk 0:00:31]} 49. Re2 {[%clk 0:00:01]}  Re6 {[%clk 0:00:31]} 50. Kg2 {[%clk 0:00:01]}  Rc6 {[%clk 0:00:31]} 51. Kf3 {[%clk 0:00:01]}  Rc3 {[%clk 0:00:32]} 0-1


[Site "https://www.chess.com"]

[Event "Titled Tuesday Blitz April 26 Late 2022"]
[White "Gutierrez Olivares, Daniel"]
[Black "Mirza, Diana"]
[WhiteFideId "2264005"]
[BlackFideId "2503999"]
[WhiteElo "2317"]
[BlackElo "1813"]
[Result "1-0"]
[Round "04"]
[TimeControl "180+1"]
[Date "2022.04.26"]
[WhiteClock "0:02:00"]
[BlackClock "0:00:32"]

1. Nf3 {[%clk 0:02:52]}  d5 {[%clk 0:02:59]} 2. g3 {[%clk 0:02:53]}  c5 {[%clk 0:02:58]} 3. c4 {[%clk 0:02:54]}  d4 {[%clk 0:02:58]} 4. e3 {[%clk 0:02:53]}  Nc6 {[%clk 0:02:55]} 5. exd4 {[%clk 0:02:53]}  cxd4 {[%clk 0:02:56]} 6. d3 {[%clk 0:02:54]}  g6 {[%clk 0:02:55]} 7. Bg2 {[%clk 0:02:55]}  Bg7 {[%clk 0:02:55]} 8. O-O {[%clk 0:02:55]}  Bg4 {[%clk 0:02:55]} 9. a3 {[%clk 0:02:55]}  e6 {[%clk 0:02:54]} 10. b4 {[%clk 0:02:54]}  Nge7 {[%clk 0:02:53]} 11. h3 {[%clk 0:02:55]}  Bxf3 {[%clk 0:02:37]} 12. Bxf3 {[%clk 0:02:55]}  Qd7 {[%clk 0:02:19]} 13. Nd2 {[%clk 0:02:52]}  Ne5 {[%clk 0:02:17]} 14. Be2 {[%clk 0:02:49]}  h5 {[%clk 0:02:12]} 15. Ne4 {[%clk 0:02:45]}  h4 {[%clk 0:02:07]} 16. g4 {[%clk 0:02:45]}  f5 {[%clk 0:01:56]} 17. Nc5 {[%clk 0:02:45]}  Qc6 {[%clk 0:01:52]} 18. f4 {[%clk 0:02:43]}  fxg4 {[%clk 0:01:29]} 19. fxe5 {[%clk 0:02:38]}  gxh3 {[%clk 0:01:16]} 20. Bf3 {[%clk 0:02:35]}  h2+ {[%clk 0:01:15]} 21. Kh1 {[%clk 0:02:33]}  Qc7 {[%clk 0:01:06]} 22. Nxe6 {[%clk 0:02:20]}  Qxe5 {[%clk 0:01:03]} 23. Re1 {[%clk 0:02:14]}  Qf6 {[%clk 0:00:50]} 24. Bg5 {[%clk 0:02:11]}  Qf7 {[%clk 0:00:42]} 25. Nxg7+ {[%clk 0:02:09]}  Kf8 {[%clk 0:00:37]} 26. Bxe7+ {[%clk 0:02:05]}  Kxg7 {[%clk 0:00:38]} 27. Bc5 {[%clk 0:02:00]}  Rad8 {[%clk 0:00:32]} 28. Re7 {[%clk 0:02:00]} 1-0


[Site "https://www.chess.com"]

[Event "Titled Tuesday Blitz April 26 Late 2022"]
[White "Hamley, Ryan"]
[Black "Ivanisevic, Ivan"]
[WhiteFideId "30959497"]
[BlackFideId "912417"]
[WhiteElo "2470"]
[BlackElo "2495"]
[Result "0-1"]
[Round "04"]
[TimeControl "180+1"]
[Date "2022.04.26"]
[WhiteClock "0:00:03"]
[BlackClock "0:00:11"]

1. e4 {[%clk 0:03:00]}  e5 {[%clk 0:02:59]} 2. Nf3 {[%clk 0:03:00]}  Nc6 {[%clk 0:03:00]} 3. Bb5 {[%clk 0:02:58]}  a6 {[%clk 0:03:00]} 4. Ba4 {[%clk 0:02:58]}  Nf6 {[%clk 0:03:00]} 5. O-O {[%clk 0:02:58]}  Be7 {[%clk 0:03:00]} 6. Re1 {[%clk 0:02:55]}  b5 {[%clk 0:03:00]} 7. Bb3 {[%clk 0:02:55]}  O-O {[%clk 0:03:01]} 8. c3 {[%clk 0:02:54]}  d5 {[%clk 0:03:00]} 9. exd5 {[%clk 0:02:54]}  Nxd5 {[%clk 0:03:01]} 10. Nxe5 {[%clk 0:02:55]}  Nxe5 {[%clk 0:03:00]} 11. Rxe5 {[%clk 0:02:56]}  c6 {[%clk 0:03:00]} 12. d3 {[%clk 0:02:51]}  a5 {[%clk 0:03:00]} 13. Nd2 {[%clk 0:02:44]}  a4 {[%clk 0:02:57]} 14. Bc2 {[%clk 0:02:44]}  a3 {[%clk 0:02:54]} 15. Nf3 {[%clk 0:02:41]}  Bf6 {[%clk 0:02:50]} 16. Re2 {[%clk 0:02:32]}  Bg4 {[%clk 0:02:39]} 17. d4 {[%clk 0:02:27]}  Bxf3 {[%clk 0:02:33]} 18. gxf3 {[%clk 0:02:18]}  Re8 {[%clk 0:02:24]} 19. Be4 {[%clk 0:02:13]}  Qd6 {[%clk 0:02:19]} 20. Bxd5 {[%clk 0:02:08]}  Qxd5 {[%clk 0:02:19]} 21. bxa3 {[%clk 0:02:08]}  Qc4 {[%clk 0:01:44]} 22. Rxe8+ {[%clk 0:01:45]}  Rxe8 {[%clk 0:01:45]} 23. Be3 {[%clk 0:01:45]}  Be7 {[%clk 0:01:31]} 24. Qb3 {[%clk 0:01:43]}  Qd3 {[%clk 0:01:25]} 25. a4 {[%clk 0:01:32]}  Qg6+ {[%clk 0:01:14]} 26. Kh1 {[%clk 0:01:25]}  Qh5 {[%clk 0:01:09]} 27. Kg2 {[%clk 0:01:23]}  Bd6 {[%clk 0:01:08]} 28. Rh1 {[%clk 0:00:58]}  Re6 {[%clk 0:01:06]} 29. Qd1 {[%clk 0:00:58]}  bxa4 {[%clk 0:00:55]} 30. c4 {[%clk 0:00:43]}  h6 {[%clk 0:00:54]} 31. h4 {[%clk 0:00:35]}  Rg6+ {[%clk 0:00:44]} 32. Kf1 {[%clk 0:00:35]}  Qf5 {[%clk 0:00:44]} 33. Ke2 {[%clk 0:00:25]}  Rf6 {[%clk 0:00:29]} 34. Kf1 {[%clk 0:00:25]}  Re6 {[%clk 0:00:28]} 35. Ke2 {[%clk 0:00:18]}  Bf4 {[%clk 0:00:28]} 36. Qd3 {[%clk 0:00:18]}  Qf6 {[%clk 0:00:25]} 37. d5 {[%clk 0:00:17]}  cxd5 {[%clk 0:00:25]} 38. cxd5 {[%clk 0:00:17]}  Re8 {[%clk 0:00:22]} 39. Rc1 {[%clk 0:00:08]}  Qxh4 {[%clk 0:00:19]} 40. d6 {[%clk 0:00:04]}  Bxe3 {[%clk 0:00:19]} 41. fxe3 {[%clk 0:00:05]}  Qh2+ {[%clk 0:00:19]} 42. Kd1 {[%clk 0:00:05]}  Qg1+ {[%clk 0:00:17]} 43. Kd2 {[%clk 0:00:05]}  Qf2+ {[%clk 0:00:16]} 44. Kd1 {[%clk 0:00:05]}  Rd8 {[%clk 0:00:14]} 45. d7 {[%clk 0:00:05]}  Qg1+ {[%clk 0:00:14]} 46. Kc2 {[%clk 0:00:03]}  Qg6 {[%clk 0:00:11]} 47. Kb1 {[%clk 0:00:03]}  Qxd3+ {[%clk 0:00:11]} 0-1


[Site "https://www.chess.com"]